bitfinex/quotes_ETHUSD_20250815
["timestamp","ask_amount","ask_price","bid_price","bid_amount"]
[1755280408664,4.002,4439.2,4439.1,0.67]
[1755280408902,7.716,4439.2,4439.1,0.67]
[1755280409089,7.715,4439.2,4439.1,0.67]
[1755280409866,4.002,4439.2,4439.1,0.67]
[1755280410368,7.715,4439.2,4439.1,0.67]
[1755280411066,0.002,4439.5,4439.1,3.2149949]
[1755280411272,0.002,4440.0,4439.9,2.80230297]
[1755280411499,0.002,4440.0,4439.9,5.80230297]
[1755280411830,0.002,4440.0,4439.9,0.5572]
[1755280411974,0.002,4440.0,4439.6,0.5572]
[1755280412316,3.714,4440.0,4439.6,0.8381717]
[1755280412814,3.714,4440.0,4439.5,2.25250312]
[1755280412980,0.002,4440.0,4439.6,2.25244795]
[1755280413300,3.712,4439.9,4439.8,2.25230737]
[1755280413501,0.002,4440.0,4439.8,2.80950737]
[1755280413688,0.002,4440.0,4439.9,0.5572]
[1755280413892,0.002,4440.0,4439.9,2.80950297]
[1755280414095,0.002,4440.0,4439.9,3.35995079]
[1755280414286,0.002,4440.0,4439.9,3.80255079]
[1755280414876,0.002,4440.0,4439.9,3.35995079]
[1755280415706,0.002,4440.0,4439.9,1.10764782]
[1755280415905,0.002,4440.0,4439.9,0.55044782]
[1755280416107,0.002,4440.0,4439.5,0.5572]
[1755280416409,0.4719,4440.0,4439.2,3.0]
[1755280416780,0.002,4440.0,4439.5,2.25247468]
[1755280416985,0.4699,4439.9,4439.2,3.0]
[1755280417206,0.4699,4439.9,4439.1,0.29228602]
[1755280417410,3.711,4439.8,4438.7,5.96390041]
[1755280417712,3.711,4439.8,4438.6,0.5518]
[1755280418011,0.4699,4439.9,4438.6,0.5518]
[1755280418012,4.1809,4439.7,4438.6,2.25292136]
[1755280418177,2.25231895,4439.9,4437.7,1e-08]
[1755280418178,0.4699,4439.6,4437.7,1e-08]
[1755280418377,3.711,4439.5,4438.1,2.25316936]
[1755280418572,0.88799,4439.4,4438.1,2.25316936]
[1755280418802,2.25266019,4439.2,4437.9,2.25326766]
[1755280419008,2.25266019,4439.2,4438.0,2.25325525]
[1755280419213,2.7225105,4439.3,4438.0,2.25325525]
[1755280419417,2.25266312,4439.2,4438.0,2.25325525]
[1755280419579,2.25266312,4439.2,4438.1,0.50584228]
[1755280420812,0.4699,4439.3,4438.1,0.50584228]
[1755280421120,2.25279775,4439.0,4437.8,2.25332377]
[1755280421409,4.1799,4438.9,4438.4,0.1128]
[1755280421712,0.4699,4438.8,4438.4,0.1128]
[1755280422015,0.1128,4439.1,4438.4,2.36585684]
[1755280422176,3.71,4438.7,4438.2,2.25312749]
[1755280422374,3.71,4438.6,4438.3,0.22531275]
[1755280422773,3.71,4438.6,4438.5,0.1128]
[1755280423478,4.1799,4438.6,4438.5,0.1128]
[1755280424118,4.1799,4438.6,4438.2,0.1128]
[1755280424435,0.4699,4438.5,4438.2,0.1128]
[1755280424622,0.4699,4438.4,4438.2,0.1128]
[1755280425110,0.4699,4438.3,4438.2,0.1128]
[1755280425714,0.4699,4438.3,4437.7,1e-08]
[1755280425715,1.0382,4438.3,4437.7,1e-08]
[1755280426015,1.0382,4438.3,4437.8,0.1128]
[1755280426188,0.4699,4438.2,4437.8,0.1128]
[1755280426517,4.1799,4438.1,4437.8,0.1128]
[1755280426714,0.1128,4438.4,4437.8,0.1128]
[1755280426914,3.71,4438.0,4437.8,0.1128]
[1755280427215,0.1128,4438.4,4437.9,0.5518]
[1755280427415,0.4699,4438.9,4437.9,2.80511733]
[1755280427618,0.1128,4438.6,4437.9,0.5518]
[1755280427783,3.709,4438.6,4438.3,0.1128]
[1755280427978,0.1128,4438.9,4438.3,0.6646]
[1755280428221,0.1128,4438.9,4438.3,0.1128]
[1755280428423,0.1128,4439.3,4438.7,0.1128]
[1755280428724,3.709,4439.4,4438.8,0.5518]
[1755280428924,3.709,4439.6,4439.3,0.1128]
[1755280429135,0.002,4440.1,4439.5,0.1128]
[1755280429314,3.711,4440.1,4439.5,0.1128]
[1755280430520,0.002,4440.1,4439.5,0.1128]
[1755280430818,3.711,4440.1,4439.8,0.1128]
[1755280431189,0.002,4440.1,4439.8,0.1128]
[1755280433513,0.4699,4439.9,4439.8,0.1128]
[1755280433709,1.0382,4439.9,4438.6,0.5518]
[1755280434021,0.1128,4439.2,4438.5,0.1128]
[1755280434226,3.708,4439.1,4438.5,0.1128]
[1755280436693,3.707,4439.1,4438.5,0.1128]
[1755280440714,0.1128,4439.4,4438.5,0.1128]
[1755280440916,0.5827,4439.9,4439.0,0.1128]
[1755280441092,3.708,4440.1,4439.1,0.57432708]
[1755280441293,0.002,4440.1,4439.8,0.1128]
[1755280443193,0.002,4440.1,4439.9,0.1128]
[1755280444228,0.4719,4440.0,4439.9,0.1128]
[1755280444498,0.002,4440.0,4438.6,3.0]
[1755280444656,0.002,4440.0,4439.3,0.5518]
[1755280444867,0.002,4440.0,4439.7,2.25236809]
[1755280445151,0.002,4440.0,4439.8,2.36514464]
[1755280445351,0.002,4440.0,4439.8,0.34931446]
[1755280445555,0.002,4440.0,4439.8,0.1128]
[1755280447916,0.002,4440.0,4439.8,2.36514972]
[1755280448227,0.002,4440.0,4439.9,0.6116]
[1755280448432,0.002,4440.0,4439.9,2.86390297]
[1755280448628,0.002,4440.0,4439.9,0.6116]
[1755280449044,0.002,4440.0,4439.9,3.16158263]
[1755280449210,0.002,4440.0,4439.9,6.73410565]
[1755280449409,1e-08,4440.1,4440.0,5.25225225]
[1755280449718,0.022,4440.4,4440.3,2.25210008]
[1755280450118,0.022,4440.4,4440.3,3.99642108]
[1755280450426,0.022,4440.4,4440.3,5.26905934]
[1755280453441,0.022,4440.4,4440.3,4.27165934]
[1755280453757,0.022,4440.4,4440.3,3.66005934]
[1755280454114,0.022,4440.4,4440.3,0.1128]
[1755280454532,0.4836,4440.4,4440.3,0.1128]
[1755280455377,0.4836,4440.4,4439.8,2.25234444]
[1755280455378,1.0858,4440.4,4439.7,3.702]
[1755280455577,0.4616,4440.3,4439.9,0.1128]
[1755280455974,0.6242,4440.4,4439.9,0.1128]
[1755280456135,0.4616,4440.2,4439.9,0.1128]
[1755280456333,0.4616,4440.2,4439.9,0.57455958]
[1755280456536,0.4616,4440.2,4439.9,0.1128]
[1755280457061,0.4616,4440.2,4439.9,2.365092]
[1755280457368,0.4616,4440.2,4439.9,0.1128]
[1755280457557,0.4616,4440.1,4439.9,0.1128]
[1755280457736,0.4616,4440.0,4439.9,0.1128]
[1755280459369,1.0638,4440.0,4438.7,2.25291188]
[1755280459566,0.4616,4439.9,4439.6,0.1128]
[1755280459746,1.0638,4439.9,4439.6,0.1128]
[1755280459950,1.0638,4439.8,4439.6,0.1128]
[1755280460151,0.4616,4439.7,4439.6,0.1128]
[1755280460358,1.0638,4439.7,4439.6,0.1128]
[1755280461350,0.4616,4439.7,4439.6,0.1128]
[1755280461548,1.0638,4439.7,4439.6,0.1128]
[1755280461749,1.0638,4439.7,4439.4,0.1128]
[1755280461949,0.6022,4439.7,4439.4,0.1128]
[1755280462275,0.4616,4439.6,4439.4,0.1128]
[1755280462664,0.6022,4439.9,4439.4,0.1128]
[1755280462850,0.4616,4439.5,4439.4,0.1128]
[1755280463552,0.4616,4440.0,4439.4,0.1128]
[1755280464074,2.22650392,4440.3,4439.2,2.25264789]
[1755280464235,0.1128,4440.1,4439.5,0.1128]
[1755280464869,2.85445387,4440.0,4439.5,0.1128]
[1755280465055,0.6022,4439.9,4439.5,0.1128]
[1755280465262,0.6022,4439.8,4439.5,0.1128]
[1755280466077,1.0638,4439.7,4439.5,0.1128]
[1755280466575,1.0638,4439.6,4438.8,3.7]
[1755280466890,1.0638,4439.6,4439.3,0.1128]
[1755280467038,2.25227905,4440.0,4438.5,0.001]
[1755280467039,1.0638,4439.5,4438.5,0.001]
[1755280467353,0.1128,4439.5,4438.9,0.1128]
[1755280467550,3.8108,4440.1,4439.4,0.1128]
[1755280468673,3.8108,4440.1,4439.5,0.001]
[1755280468971,0.1128,4440.1,4439.5,0.001]
[1755280469781,0.1128,4440.1,4439.5,2.25349972]
[1755280469948,0.4836,4440.4,4440.0,0.1128]
[1755280470778,0.022,4440.4,4440.0,0.1128]
[1755280471143,0.022,4440.4,4440.0,0.34931767]
[1755280471341,0.022,4440.4,4440.0,0.23651767]
[1755280471556,0.022,4440.4,4440.3,0.1128]
[1755280472142,3.0,4441.2,4440.3,1.059]
[1755280472346,5.36448613,4441.2,4440.3,1.1718]
[1755280472547,2.25169704,4441.1,4440.6,0.1128]
[1755280472745,3.1128,4441.2,4440.6,0.1128]
[1755280473063,0.6022,4441.0,4440.6,0.1128]
[1755280473461,2.2517771,4441.0,4440.6,0.1128]
[1755280473664,0.6022,4440.9,4440.6,0.1128]
[1755280474215,0.6022,4440.8,4440.6,0.1128]
[1755280475717,0.6022,4440.7,4440.6,0.1128]
[1755280476962,2.25179986,4440.9,4440.6,0.1128]
[1755280477159,2.25170936,4441.1,4440.6,0.1128]
[1755280477794,2.80860936,4441.1,4440.6,0.1128]
[1755280478106,3.694,4441.0,4440.6,0.1128]
[1755280478810,0.1128,4441.2,4440.6,0.1128]
[1755280478982,3.694,4441.1,4440.6,0.1128]
[1755280480799,5.94570998,4441.1,4440.6,0.1128]
[1755280481184,2.25174526,4441.0,4440.6,0.1128]
[1755280481387,0.5569,4441.0,4440.6,0.1128]
[1755280481702,2.80865448,4441.0,4440.6,0.1128]
[1755280482594,0.5569,4441.0,4440.6,0.1128]
[1755280482789,7.12228991,4441.1,4440.6,0.1128]
[1755280483193,2.25179947,4440.9,4440.6,0.1128]
[1755280483390,3.20048268,4440.9,4440.6,0.1128]
[1755280483900,2.25189722,4440.7,4439.6,0.4575]
[1755280484108,3.692,4440.6,4440.3,0.1128]
[1755280484639,4.2489,4440.6,4440.3,0.1128]
[1755280486308,3.692,4440.6,4440.3,0.1128]
[1755280487222,4.2489,4440.6,4440.3,0.1128]
[1755280487621,0.5569,4440.5,4439.5,0.001]
[1755280487920,3.35541013,4440.5,4439.7,0.1128]
[1755280488296,2.25204936,4440.4,4439.7,0.1128]
[1755280488517,2.25210008,4440.3,4439.7,0.1128]
[1755280488745,3.69,4440.2,4439.7,0.1128]
[1755280488913,3.69,4440.2,4439.5,0.001]
[1755280488914,0.1128,4440.1,4439.5,0.001]
[1755280489117,2.2522782,4440.0,4439.5,0.1138]
[1755280489445,0.5569,4439.9,4439.5,0.001]
[1755280489599,3.69,4439.8,4439.5,0.001]
[1755280489799,0.1128,4439.6,4439.5,0.001]
[1755280490341,2.92215517,4439.6,4439.5,0.001]
[1755280490506,6.35585517,4439.6,4439.5,0.001]
[1755280490697,7.58567739,4439.6,4439.5,0.001]
[1755280493145,11.27367739,4439.6,4439.5,0.001]
[1755280495808,6.59507739,4439.6,4439.5,0.001]
[1755280496021,9.05325517,4439.6,4439.5,0.001]
[1755280496316,6.7998,4439.6,4439.5,0.001]
[1755280496858,0.1128,4439.6,4439.5,0.001]
[1755280497025,3.687,4439.6,4439.5,0.4585]
[1755280497438,3.587,4439.6,4439.5,1.0474]
[1755280497626,3.687,4439.6,4439.5,1.16342]
[1755280498056,0.1128,4440.0,4439.5,1.16342]
[1755280498259,0.1128,4440.0,4439.5,0.001]
[1755280498552,3.687,4439.9,4439.6,1.0464]
[1755280498754,0.1128,4440.0,4439.7,1.0464]
[1755280498954,3.686,4440.1,4439.8,1.0464]
[1755280499159,3.686,4440.1,4439.9,0.1128]
[1755280499354,3.686,4440.1,4439.9,1.1592]
[1755280499522,3.686,4440.1,4440.0,1.0464]
[1755280500128,3.686,4440.1,4440.0,0.4575]
[1755280500341,3.686,4440.1,4439.9,0.1128]
[1755280500538,3.686,4440.1,4440.0,0.4575]
[1755280500737,3.686,4440.1,4440.0,1.0464]
[1755280500970,3.685,4440.3,4440.0,1.16232]
[1755280501133,3.685,4440.3,4440.1,1.0464]
[1755280501330,3.685,4440.3,4440.0,0.11592]
[1755280501331,3.685,4440.4,4440.2,1.0464]
[1755280501560,3.685,4440.5,4440.3,0.4575]
[1755280501759,3.685,4440.5,4440.4,0.4575]
[1755280502065,3.685,4440.6,4440.4,1.0464]
[1755280502274,3.685,4440.9,4440.5,1.0464]
[1755280502436,3.685,4440.9,4440.3,0.1128]
[1755280502637,3.685,4440.9,4440.6,1.0464]
[1755280502872,3.685,4440.9,4440.6,0.5889]
[1755280503179,3.685,4440.9,4440.7,0.4575]
[1755280503335,3.685,4440.9,4440.3,0.5703]
[1755280503541,5.93680319,4440.9,4440.3,0.1128]
[1755280504183,2.25184775,4440.8,4440.3,0.1128]
[1755280504384,3.685,4440.9,4440.3,0.1128]
[1755280504580,5.9368383,4440.9,4440.3,0.1128]
[1755280504786,3.685,4440.9,4440.3,0.1128]
[1755280504943,0.9906,4440.8,4440.0,0.001]
[1755280505291,0.1128,4440.6,4440.0,0.1138]
[1755280505577,3.684,4440.5,4440.0,0.1138]
[1755280506274,0.1128,4440.6,4440.1,1.0368]
[1755280506462,3.683,4440.5,4440.0,0.1138]
[1755280506666,3.683,4440.5,4440.2,1.0368]
[1755280507056,3.683,4440.5,4440.3,0.4602]
[1755280507259,3.683,4440.5,4440.2,0.5766]
[1755280507566,3.682,4440.6,4440.4,0.4602]
[1755280507876,3.682,4440.6,4440.5,0.4602]
[1755280508678,3.682,4440.8,4440.5,0.4602]
[1755280508874,3.682,4440.8,4440.6,0.5766]
[1755280509077,0.002,4441.0,4440.7,1.0368]
[1755280509286,0.002,4441.0,4440.6,0.22776]
[1755280509449,0.002,4441.0,4440.8,1.0368]
[1755280509873,0.002,4441.0,4440.9,3.2885958]
[1755280510051,0.002,4441.0,4440.9,3.4013958]
[1755280510244,0.002,4441.0,4440.9,3.97821787]
[1755280510962,0.002,4441.0,4440.9,1.72642207]
[1755280511169,0.002,4441.0,4440.9,1.61362207]
[1755280511371,0.002,4441.0,4440.9,3.2885958]
[1755280512386,0.002,4441.0,4440.9,6.31111375]
[1755280512694,0.002,4441.0,4440.9,6.3787978]
[1755280516682,0.002,4441.0,4440.9,6.9287978]
[1755280516856,0.002,4441.0,4440.9,8.22636263]
[1755280518152,1e-08,4441.0,4440.9,8.22636263]
[1755280521284,1e-08,4441.0,4440.9,8.33916263]
[1755280522668,1e-08,4441.1,4441.0,5.8017451]
[1755280522864,1e-08,4441.1,4441.0,6.8385451]
[1755280523064,1e-08,4441.1,4441.0,8.49082493]
[1755280523661,1e-08,4441.9,4441.5,3.55]
[1755280523861,0.5711,4443.9,4441.5,3.55]
[1755280523862,0.5711,4443.9,4442.3,0.55]
[1755280524091,0.5711,4443.9,4443.6,0.1128]
[1755280524264,0.5711,4443.9,4442.5,5.25093562]
[1755280524265,0.4501,4444.5,4443.8,0.1128]
[1755280524465,0.5711,4444.4,4443.5,5.92347211]
[1755280524657,0.5711,4444.4,4443.5,4.36636721]
[1755280524855,0.5711,4444.4,4444.2,0.1128]
[1755280524856,0.4501,4444.3,4444.2,0.1128]
[1755280525295,1.0212,4444.3,4444.2,0.1128]
[1755280525789,1.0212,4444.3,4443.4,3.673]
[1755280526092,2.36283065,4444.4,4443.8,0.1128]
[1755280526292,1.0212,4444.2,4443.8,0.1128]
[1755280526892,1.0212,4444.1,4443.8,0.1128]
[1755280527059,0.1128,4444.4,4443.8,0.1128]
[1755280527060,0.4501,4444.0,4443.8,0.1128]
[1755280527253,1.0212,4443.9,4443.8,0.1128]
[1755280528089,1.0212,4443.9,4443.6,0.1128]
[1755280528255,2.36283522,4444.4,4443.6,0.1128]
[1755280528458,1.0212,4443.8,4443.6,0.1128]
[1755280528792,0.1128,4444.4,4443.6,0.1128]
[1755280528979,0.1128,4444.7,4443.8,2.25031473]
[1755280529305,1.0232,4444.8,4444.2,0.1128]
[1755280529991,0.5731,4444.8,4444.2,0.1128]
[1755280530169,0.5731,4444.8,4444.6,0.1128]
[1755280530372,0.002,4444.8,4444.6,2.36267511]
[1755280530558,0.002,4444.8,4444.6,0.1128]
[1755280530896,1.0212,4444.7,4444.6,0.1128]
[1755280531458,0.5711,4444.7,4444.6,0.1128]
[1755280533863,1.0212,4444.7,4443.6,1.90662537]
[1755280534089,1.134,4444.6,4444.0,0.1128]
[1755280534294,0.1136,4444.5,4444.0,0.1128]
[1755280534471,0.5711,4444.4,4444.0,0.1128]
[1755280534672,0.1128,4444.6,4444.0,0.1128]
[1755280534884,0.002,4444.8,4444.0,0.4602]
[1755280535066,0.002,4444.8,4444.5,0.1128]
[1755280535466,0.5711,4444.7,4444.5,0.1128]
[1755280535678,1.0212,4444.6,4444.5,0.1128]
[1755280535874,1.0212,4444.6,4443.6,1.90662537]
[1755280536092,1.0212,4444.6,4444.1,0.1128]
[1755280536299,0.1148,4444.8,4444.1,0.1128]
[1755280536502,1.0194,4444.5,4444.1,0.1128]
[1755280536662,1.0194,4444.4,4444.1,0.1128]
[1755280537060,0.5741,4444.3,4444.1,0.1128]
[1755280537298,1.1322,4444.3,4443.6,2.01942537]
[1755280537503,0.5741,4444.2,4443.6,2.01942537]
[1755280538110,0.1128,4444.3,4443.6,2.01942537]
[1755280538293,0.1128,4444.3,4443.7,2.72183726]
[1755280538604,0.1128,4444.3,4443.7,2.72187688]
[1755280538780,0.002,4444.7,4443.7,0.4715]
[1755280538988,0.002,4444.7,4444.3,0.1128]
[1755280539713,0.002,4444.7,4444.3,0.5843]
[1755280540005,0.002,4444.7,4444.4,1.0574]
[1755280540213,0.002,4444.7,4444.4,3.30741552]
[1755280540516,0.002,4444.7,4444.5,1.0574]
[1755280540808,0.002,4444.7,4444.3,2.36287151]
[1755280541015,0.002,4444.7,4444.5,2.72146752]
[1755280541213,0.002,4444.7,4444.6,2.36272125]
[1755280541414,0.002,4444.7,4444.6,3.42012125]
[1755280541719,0.002,4444.7,4444.6,3.98713457]
[1755280542182,0.002,4444.7,4444.6,3.87433457]
[1755280542385,0.002,4444.7,4444.6,3.98713457]
[1755280542894,1e-08,4444.7,4444.6,7.53713457]
[1755280543095,0.002,4445.2,4444.8,0.55]
[1755280543298,0.002,4445.2,4445.1,5.79966817]
[1755280543499,1e-08,4445.2,4445.1,5.91246817]
[1755280543686,0.002,4445.6,4445.5,5.79946575]
[1755280543999,0.002,4445.6,4445.5,9.57526575]
[1755280544321,0.002,4445.6,4445.5,11.91988622]
[1755280544527,0.002,4445.6,4445.5,8.25788622]
[1755280544699,0.002,4445.6,4445.5,11.91988622]
[1755280546230,0.002,4445.6,4445.5,11.91888622]
[1755280548613,0.002,4445.6,4445.5,8.25788622]
[1755280548988,0.002,4445.6,4445.5,11.91688622]
[1755280549423,0.002,4445.6,4445.5,8.25788622]
[1755280549630,0.002,4445.6,4445.5,11.91688622]
[1755280550823,1e-08,4446.1,4446.0,2.79921277]
[1755280551121,1e-08,4446.1,4446.0,29.58631301]
[1755280551332,1e-08,4446.1,4446.0,27.09851301]
[1755280551489,1e-08,4446.1,4446.0,13.03765254]
[1755280552024,0.5761,4448.6,4446.4,0.55]
[1755280552273,0.5741,4448.3,4447.4,2.24848243]
[1755280552539,0.5741,4448.3,4447.7,2.24835043]
[1755280552746,0.1128,4448.2,4447.8,5.90529472]
[1755280553032,0.002,4448.6,4448.0,0.1128]
[1755280553213,2.24799144,4448.5,4448.1,3.657]
[1755280553405,1.0194,4448.4,4448.1,3.657]
[1755280553601,0.5741,4448.3,4448.1,3.657]
[1755280554254,0.002,4448.6,4448.1,3.657]
[1755280554726,0.002,4448.6,4448.2,2.24809318]
[1755280554930,0.002,4448.6,4448.1,3.657]
[1755280555143,0.002,4448.6,4448.2,2.24808096]
[1755280555293,0.002,4448.6,4448.1,3.657]
[1755280555492,0.002,4448.6,4447.4,4.15325048]
[1755280555493,0.5741,4448.5,4448.2,3.656]
[1755280555800,0.5741,4448.4,4448.3,3.656]
[1755280556430,0.5741,4448.4,4448.3,3.655]
[1755280557612,0.002,4448.6,4448.3,3.655]
[1755280557811,1.0194,4448.4,4448.3,3.655]
[1755280558610,1.0194,4448.4,4447.5,2.24841024]
[1755280558813,3.2674208,4448.4,4447.6,3.654]
[1755280559119,1.12603268,4448.4,4447.6,5.90239]
[1755280559435,0.002,4448.6,4448.3,2.24801595]
[1755280559612,0.002,4448.6,4448.4,3.653]
[1755280559818,0.002,4448.6,4448.5,3.653]
[1755280560523,2.24796672,4448.5,4447.6,2.24839767]
[1755280560707,0.55192126,4448.5,4447.7,3.653]
[1755280560912,0.5761,4448.6,4447.7,3.653]
[1755280561855,0.5761,4448.6,4447.8,2.2482611]
[1755280562240,0.5761,4448.6,4447.9,2.24823692]
[1755280562615,0.5761,4448.6,4447.7,3.653]
[1755280562817,0.5761,4448.6,4447.9,2.2482497]
[1755280563018,0.5761,4448.6,4448.0,2.24820017]
[1755280563263,0.002,4448.6,4448.5,0.112]
[1755280563749,0.002,4448.6,4448.5,0.5835]
[1755280563954,0.002,4448.6,4448.5,0.112]
[1755280565355,1.0214,4448.6,4448.5,0.112]
[1755280565777,2.24798811,4448.5,4447.7,3.65]
[1755280565959,2.24798811,4448.5,4446.6,0.4715]
[1755280565960,1.57132379,4448.4,4447.5,3.65]
[1755280566168,0.114,4448.6,4447.6,0.1128]
[1755280566169,2.2481795,4448.1,4447.6,0.1128]
[1755280566482,0.1128,4448.3,4447.6,0.1128]
[1755280566780,0.002,4448.6,4447.7,0.4568]
[1755280566946,0.002,4448.6,4448.5,0.112]
[1755280568944,0.002,4448.6,4448.5,0.5688]
[1755280569374,0.002,4448.6,4448.5,0.112]
[1755280572898,0.002,4448.6,4448.5,3.759]
[1755280575070,0.002,4448.6,4448.5,6.00694874]
[1755280575300,0.002,4448.6,4448.5,3.759]
[1755280577200,0.002,4448.6,4448.5,6.46374874]
[1755280577572,0.002,4448.6,4448.5,4.2158]
[1755280577964,0.002,4448.6,4448.5,0.5688]
[1755280578169,0.002,4448.6,4448.5,3.756]
[1755280580980,0.002,4448.6,4448.5,0.112]
[1755280581321,0.002,4448.6,4448.5,3.755]
[1755280582109,0.002,4448.6,4448.5,7.65093324]
[1755280582717,0.002,4448.6,4448.5,11.08893324]
[1755280582922,1e-08,4448.7,4448.6,5.79789821]
[1755280583159,1e-08,4448.7,4448.6,6.79989821]
[1755280583444,1e-08,4448.7,4448.6,10.44089821]
[1755280583622,1e-08,4448.7,4448.6,13.9146622]
[1755280583822,1e-08,4448.7,4448.6,10.2736622]
[1755280584115,1e-08,4448.7,4448.6,13.9146622]
[1755280584529,1e-08,4448.7,4448.6,13.3694622]
[1755280584732,1e-08,4448.7,4448.6,9.8194622]
[1755280585447,1e-08,4448.7,4448.6,7.79317461]
[1755280585616,1e-08,4448.7,4448.6,1.9042764]
[1755280585813,0.46660001,4448.7,4448.6,1.9042764]
[1755280586012,2.79994768,4448.7,4448.6,1.9042764]
[1755280586224,0.6641,4448.7,4448.6,1.9042764]
[1755280586424,2.91194768,4448.7,4448.6,1.9042764]
[1755280586757,3.20314245,4448.7,4448.6,1.9042764]
[1755280587743,3.20514245,4448.7,4448.6,1.9042764]
[1755280587941,3.21804245,4448.7,4448.6,1.9042764]
[1755280588675,3.20514245,4448.7,4448.6,1.9042764]
[1755280589146,0.95729477,4448.7,4448.6,1.9042764]
[1755280589348,3.20514245,4448.7,4448.6,1.9042764]
[1755280590141,0.40519477,4448.7,4448.6,1.9042764]
[1755280590321,0.002,4448.7,4448.6,2.3610764]
[1755280590515,0.002,4448.7,4448.6,4.72097461]
[1755280590741,0.002,4448.7,4448.6,8.90417461]
[1755280591356,0.002,4450.1,4449.5,2.24744353]
[1755280591525,0.002,4450.1,4449.5,6.11018788]
[1755280591723,0.002,4450.1,4449.5,6.22218788]
[1755280591924,0.002,4450.1,4449.5,7.22418788]
[1755280592554,2.80149302,4449.6,4449.5,0.112]
[1755280592755,2.80149302,4449.6,4449.2,1.90422559]
[1755280592756,0.6661,4449.6,4449.2,1.90422559]
[1755280592921,2.24753948,4449.4,4449.2,1.90422559]
[1755280593120,2.79964455,4449.3,4449.2,1.90422559]
[1755280593818,2.91164455,4449.3,4449.2,1.90422559]
[1755280594019,3.42775566,4449.3,4449.2,1.90422559]
[1755280594452,2.87565566,4449.3,4449.2,1.90422559]
[1755280594663,0.112,4449.3,4449.2,1.90422559]
[1755280594830,0.114,4449.6,4449.2,1.90422559]
[1755280595036,0.002,4449.6,4449.3,0.4568]
[1755280595223,0.002,4449.6,4449.5,0.112]
[1755280595646,0.002,4449.6,4449.5,0.5688]
[1755280596720,0.002,4449.6,4449.5,4.50562256]
[1755280596917,0.002,4449.6,4449.5,7.27936609]
[1755280599161,0.002,4449.6,4449.5,7.27836609]
[1755280599461,0.002,4449.6,4449.5,4.50462256]
[1755280599821,0.002,4449.6,4449.5,0.5688]
[1755280600028,0.002,4449.6,4449.5,0.112]
[1755280602196,0.002,4449.6,4449.5,0.553]
[1755280603257,0.002,4449.6,4449.5,0.112]
[1755280604200,0.002,4449.6,4449.5,0.553]
[1755280604796,0.002,4449.6,4449.5,0.112]
[1755280605089,0.002,4449.6,4449.5,0.553]
[1755280606359,0.002,4449.6,4449.5,3.93566609]
[1755280606584,0.002,4449.6,4449.5,0.72092256]
[1755280606786,0.002,4449.6,4449.5,3.743]
[1755280607492,0.002,4449.6,4449.5,4.184]
[1755280607712,0.002,4449.6,4449.5,6.95774353]
[1755280607857,0.002,4450.1,4449.5,6.95774353]
[1755280607858,0.002,4450.1,4450.0,2.24719101]
[1755280608053,0.002,4450.1,4450.0,5.87719101]
[1755280608260,0.002,4450.1,4450.0,5.98919101]
[1755280608567,0.002,4450.1,4450.0,6.95649101]
[1755280608754,0.002,4450.1,4450.0,0.553]
[1755280608960,0.002,4450.1,4450.0,0.112]
[1755280610058,0.002,4450.1,4450.0,0.553]
[1755280610456,0.002,4450.1,4450.0,1.0793]
[1755280610996,0.002,4450.1,4450.0,0.553]
[1755280614098,0.002,4450.1,4450.0,0.112]
[1755280614601,2.24727899,4449.9,4449.6,3.627]
[1755280615097,2.78887899,4449.9,4449.6,3.627]
[1755280615264,2.78887969,4449.9,4449.6,3.627]
[1755280615886,0.002,4450.1,4449.7,1.3412]
[1755280616080,0.002,4450.1,4449.7,0.8149]
[1755280616285,0.002,4450.1,4449.4,3.626]
[1755280616694,2.24728906,4449.9,4449.2,1.90422559]
[1755280617208,0.002,4450.1,4449.3,0.441]
[1755280617515,0.002,4450.1,4449.3,2.68853089]
[1755280617703,2.24914758,4450.1,4449.3,0.441]
[1755280618508,0.002,4450.1,4449.3,2.68850232]
[1755280618674,2.24914309,4450.1,4449.3,0.441]
[1755280618987,2.24720937,4450.0,4449.3,0.441]
[1755280619169,0.002,4450.1,4449.3,0.441]
[1755280619612,0.002,4450.1,4449.3,2.6885066]
[1755280619967,0.002,4450.1,4449.3,0.441]
[1755280620172,0.22691148,4450.1,4449.3,0.442]
[1755280620372,3.0,4449.8,4449.3,0.001]
[1755280620582,2.24724151,4449.9,4449.3,0.001]
[1755280620583,2.24749404,4449.4,4449.3,0.001]
[1755280621181,5.9766296,4449.4,4449.3,0.001]
[1755280621504,6.46133987,4449.4,4449.3,0.001]
[1755280622481,7.01074737,4449.4,4449.3,0.001]
[1755280622712,7.93655949,4449.4,4449.3,0.001]
[1755280623011,7.93655949,4449.4,4449.3,1e-08]
[1755280623677,11.56055949,4449.4,4449.3,1e-08]
[1755280624392,7.37805949,4449.4,4449.3,1e-08]
[1755280624590,11.05954665,4449.4,4449.3,1e-08]
[1755280624804,11.07644665,4449.4,4449.3,1e-08]
[1755280625335,2.24789821,4448.6,4448.5,0.001]
[1755280625538,6.32047061,4448.6,4448.5,0.001]
[1755280625702,9.32047061,4448.6,4448.5,0.001]
[1755280626029,9.99097061,4448.6,4448.5,0.001]